Cogmind - Beta 14 @@@ ROGUE MODE // 2025.03.17 @ 22:33:07 Player: Solshine Result: Self-destructed Performance ------------- Evolutions (1) 500 Regions Visited (3) 600 Robots Destroyed (11) 55 Value Destroyed (240) 240 Prototype IDs (1) 20 Alien Tech Used (0) 0 Bonus (0) 0 TOTAL SCORE: 1415 Bonus ------- None Cogmind --------- Core Integrity 332/400 Matter 244/300 Energy 100/100 System Corruption 0% Temperature Cool (20) Movement Core (200) Ox3 Location -9/Materials Parts ------- > --- POWER (1) -------- (None) > --- PROPULSION (3) --- (None) > --- UTILITY (2) ------ Small Storage Unit Sensor Array > --- WEAPON (3) ------- Improved Medium Laser Autogun > --- INVENTORY (8) ---- Light Ion Engine Aluminum Leg Aluminum Leg EM Pulse Gun Autogun Peak State ------------ > --- POWER ------------ Light Nuclear Core > --- PROPULSION ------- Light Treads Light Treads > --- UTILITY ---------- Small Storage Unit Sensor Array > --- WEAPON ----------- Improved Medium Laser Light Assault Rifle Autogun > --- INVENTORY -------- Light Ion Engine Aluminum Leg Aluminum Leg Sensor Array EM Pulse Gun Assault Rifle [Rating: 13] Favorites ----------- Power Light Ion Engine Engine Light Ion Engine Power Core Light Nuclear Core Propulsion Light Treads Treads Light Treads Utility Small Storage Unit Device Sensor Array Storage Small Storage Unit Weapon Assault Rifle Energy Gun Improved Medium Laser Ballistic Gun Assault Rifle Build | -11 -10 -10 -9 ------- Run | Yrd Mat Min Mat Slots Evolved 2 | . . . 2 Power . | . . . . Propulsion 1 | . . . 1 Utility . | . . . . Weapon 1 | . . . 1 Parts Attached 20 | 6 4 5 5 Power 4 | 1 . 3 . Engine 3 | 1 . 2 . Core 1 | . . 1 . Reactor . | . . . . Propulsion 2 | 1 1 . . Treads 2 | 1 1 . . Leg . | . . . . Wheel . | . . . . Hover . | . . . . Flight . | . . . . Utility 4 | 1 2 . 1 Device 3 | . 2 . 1 Storage 1 | 1 . . . Processor . | . . . . Hackware . | . . . . Protection . | . . . . Artifact . | . . . . Weapon 10 | 3 1 2 4 Energy Gun 5 | 1 1 1 2 Energy Cannon . | . . . . Ballistic Gun 5 | 2 . 1 2 Ballistic Cannon . | . . . . Launcher . | . . . . Special Weapon . | . . . . Impact Weapon . | . . . . Slashing Weapon . | . . . . Piercing Weapon . | . . . . Special Melee Weapon . | . . . . Unidentified Prototypes 1 | . . . 1 Parts Lost 6 | . 2 1 3 Power 2 | . . 1 1 Propulsion 1 | . . . 1 Utility 2 | . 1 . 1 Weapon 1 | . 1 . . Highest Loss Streak 2 | . 2 1 2 To Critical Strikes . | . . . . Average Slot Usage (%) 90 | . 84 100 77 Engine 9 | . 14 12 . Core 3 | . . 1 11 Treads 22 | . 17 28 13 Device 11 | . 8 14 9 Storage 13 | . 14 14 11 Energy Gun 6 | . 14 1 11 Ballistic Gun 22 | . 14 26 21 Peak Build Rating 13 | 5 7 9 13 Average Rating 7 | 3 5 7 11 On Entrance 5 | . 5 7 9 Naked Turns . | . . . . Heaviest Build 18 | 12 13 14 18 Greatest Support 40 | 20 40 40 40 Greatest Overweight (x) . | . . . . Average Overweight (x) . | . . . . Largest Inventory Capacity 8 | 8 8 8 8 Average Capacity 7 | 6 8 8 8 Most Carried 7 | 5 7 5 7 Average Carried 4 | 3 5 4 4 Final Capacity 8 | 8 8 8 8 Final Carried 5 | 5 5 5 5 Class Distribution -------------------- 74% | Mutant 20% | Skirmisher 4% | Gunner Dominant Class ---------------- Mutant | -10/Materials Mutant | -10/Mines Skirmisher | -9/Materials Resources | -11 -10 -10 -9 ----------- Run | Yrd Mat Min Mat Matter Collected 476 | 188 . 122 166 Remotely . | . . . . Salvage Created 268 | . . 90 178 Parts 25 | . . 7 18 Haulers Intercepted . | . . . . Recyclers Shooed 1 | 1 . . . Parts Field Recycled . | . . . . Retrieved Matter . | . . . . Parts Self-Destructed . | . . . . Prevented . | . . . . Kills | -11 -10 -10 -9 ------- Run | Yrd Mat Min Mat Combat Hostiles Destroyed 11 | . . 4 7 Guns 9 | . . 4 5 AOE 2 | . . . 2 Classes Destroyed 3 | . . 2 1 Swarmer 7 | . . 3 4 Grunt 3 | . . 1 2 Sentry 1 | . . . 1 Best Kill Streak 6 | . . 3 6 Combat Bots Only 6 | . . 3 6 Max Kills in Single Turn 2 | . . 1 2 Gunslinging . | . . . . Exploded 2 | . . . 2 Melee . | . . . . Uniques/NPCs Destroyed . | . . . . Combat | -11 -10 -10 -9 -------- Run | Yrd Mat Min Mat Hostile Shots Fired 121 | . 8 49 64 Missed 31 | . 1 14 16 Damage Taken 1219 | . 263 360 596 Core 251 | . 87 96 68 Absorbed by Shields . | . . . . Core Remaining (%) 63 | 100 . 26 . Volleys Fired 42 | 2 3 19 18 Largest 3 | 1 2 2 3 Hottest 99 | 20 70 60 99 Shots Fired 95 | 2 6 38 49 Gun 95 | 2 6 38 49 Cannon . | . . . . Launcher . | . . . . Special . | . . . . Kinetic 73 | 2 3 33 35 Thermal 17 | . 3 . 14 Explosive . | . . . . Electromagnetic 5 | . . 5 . Robot Hit Streak 5 | 1 2 5 4 Robot Miss Streak 6 | 1 3 2 6 Penetration Max . | . . . . Secondary Targets 1 | . . . 1 Max Gunslinging Chain 1 | . . . 1 Shots Hit Robots 48 | 1 3 21 23 Core Hits 20 | 1 1 6 12 Critical Kills . | . . . . Critical Parts Destroyed . | . . . . Critical Strikes 1 | . . . 1 Burn 1 | . . . 1 Melee Attacks . | . . . . Impact . | . . . . Slashing . | . . . . Piercing . | . . . . Sneak Attacks . | . . . . Combat Hostiles . | . . . . Follow-up Attacks . | . . . . Damage Inflicted 701 | 8 39 234 420 Guns 611 | 6 39 233 333 Cannons . | . . . . Explosions 86 | . . . 86 Melee . | . . . . Ramming 4 | 2 . 1 1 Kinetic 444 | 6 14 211 213 Thermal 145 | . 25 . 120 Explosive . | . . . . Electromagnetic 108 | . . 22 86 Impact . | . . . . Slashing . | . . . . Piercing . | . . . . Highest Corruption . | . . . . Average Corruption . | . . . . Corruption Purged . | . . . . Corruption Blocked . | . . . . Overload Shots . | . . . . Overflow Damage . | . . . . Projectiles . | . . . . Explosions . | . . . . Melee . | . . . . Knockbacks . | . . . . Impact . | . . . . Kinetic . | . . . . Secondary . | . . . . Self-Inflicted Damage 65 | . . . 65 Shots 2 | . . . 2 Rammed 3 | 1 . 1 1 Targets Rammed 3 | 1 . 1 1 Kicked . | . . . . Crushed . | . . . . Highest Temperature 231 | . 63 18 231 Average Temperature 78 | . 30 10 98 Received Heat Transfer 279 | . 75 99 105 Effects 1 | . . . 1 Interference 1 | . . . 1 Siege Activations . | . . . . Robots Corrupted . | . . . . Combat Hostiles . | . . . . Parts Fried . | . . . . Impact Corruptions . | . . . . Robots Melted . | . . . . Combat Hostiles . | . . . . Parts Melted . | . . . . Heat Transferred 407 | . 74 . 333 Parts Sabotaged . | . . . . Parts Stolen . | . . . . Parts Stripped . | . . . . Power Chain Reactions 1 | . . . 1 Alert | -11 -10 -10 -9 ------- Run | Yrd Mat Min Mat Peak Influence 203 | . . 85 203 Initial 19 | . . . 19 Average 66 | . . 67 148 Maximum Alert Level 1 | . . . 1 Low Security (%) 86 | 100 100 100 43 Level 1 13 | . . . 56 Level 2 . | . . . . Level 3 . | . . . . Level 4 . | . . . . Level 5 . | . . . . High Security . | . . . . Max Security . | . . . . Squads Dispatched 2 | . 1 . 1 Investigation 1 | . . . 1 Extermination . | . . . . Reinforcement 1 | . 1 . . Assault . | . . . . Garrison . | . . . . Intercept . | . . . . Searches Triggered . | . . . . Construction Impeded . | . . . . Haulers Reinforced . | . . . . Active Scanning Responses . | . . . . Cargo Convoy Interrupts . | . . . . Stealth | -11 -10 -10 -9 --------- Run | Yrd Mat Min Mat Distress Signals . | . . . . Communications Jammed . | . . . . Distress Signals . | . . . . Times Spotted 18 | . 3 5 10 Peak Tracking Total 7 | . 2 3 7 Tactical Retreats 2 | . . 1 1 Traps | -11 -10 -10 -9 ------- Run | Yrd Mat Min Mat Traps Triggered 1 | . . . 1 Indirectly . | . . . . Trap Hack Attempts . | . . . . Triggered . | . . . . Disarmed . | . . . . Reprogrammed . | . . . . Reused . | . . . . Traps Extracted . | . . . . Installed . | . . . . Triggered . | . . . . Machines | -11 -10 -10 -9 ---------- Run | Yrd Mat Min Mat Machines Disabled 1 | . . . 1 Max in Single Turn 1 | . . . 1 Machines Repaired . | . . . . Machines Dismantled . | . . . . Machines Sabotaged . | . . . . Overloaded Fab Kills . | . . . . Hacking | -11 -10 -10 -9 --------- Run | Yrd Mat Min Mat Machines Accessed . | . . . . Terminals . | . . . . Fabricators . | . . . . Repair Stations . | . . . . Recycling Units . | . . . . Scanalyzers . | . . . . Garrison Access . | . . . . Total Hacks . | . . . . Successful . | . . . . Failed . | . . . . Catastrophic . | . . . . Database Lockouts . | . . . . Manual 3 | . 1 . 2 Terminals . | . . . . Fabricators . | . . . . Repair Stations . | . . . . Recycling Units . | . . . . Scanalyzers . | . . . . Garrison Access . | . . . . Terminal Hacks . | . . . . Fabricator Hacks . | . . . . Repair Station Hacks . | . . . . Recycling Unit Hacks . | . . . . Scanalyzer . | . . . . Garrison Access Hacks . | . . . . Unauthorized Hacks . | . . . . Terminals . | . . . . Fabricators . | . . . . Repair Stations . | . . . . Recycling Units . | . . . . Scanalyzers . | . . . . Garrison Access . | . . . . Data Cores Recovered . | . . . . Used . | . . . . Hacking Detections 2 | . 1 . 1 Full Trace Events . | . . . . Feedback Events . | . . . . Feedback Blocked . | . . . . Robot Schematics Acquired . | . . . . Robots Built . | . . . . Authchips . | . . . . Time . | . . . . Total Robot Build Rating . | . . . . Part Schematics Acquired . | . . . . Parts Built . | . . . . Authchips . | . . . . Time . | . . . . Total Part Build Rating . | . . . . Parts Repaired . | . . . . Time . | . . . . Parts Recycled . | . . . . Recycled Matter . | . . . . Retrieved Matter . | . . . . Retrieved Components . | . . . . Parts Scanalyzed . | . . . . Part Schematics Acquired . | . . . . Parts Damaged . | . . . . Bothacking | -11 -10 -10 -9 ------------ Run | Yrd Mat Min Mat Used RIF Installer . | . . . . Robots Hacked . | . . . . Non-combat . | . . . . Combat . | . . . . Robot Hacks Applied . | . . . . Relay Couplers Released . | . . . . Fabnet Peak Effective % . | . . . . Robots Rewired . | . . . . Allies Hacked . | . . . . Hacks Repelled . | . . . . Allies | -11 -10 -10 -9 -------- Run | Yrd Mat Min Mat Total Allies . | . . . . Largest Group . | . . . . Highest-Rated Group . | . . . . Highest-Rated Ally . | . . . . Total Orders . | . . . . Ally Attacks . | . . . . Total Damage . | . . . . Kills . | . . . . Allies Corrupted . | . . . . Allies Melted . | . . . . Intel | -11 -10 -10 -9 ------- Run | Yrd Mat Min Mat Robot Analysis Total . | . . . . Derelict Logs Recovered 1 | . . 1 . Drone Launches . | . . . . Drone Recoveries . | . . . . Exploration | -11 -10 -10 -9 ------------- Run | Yrd Mat Min Mat Turns Passed 1142 | 107 220 551 264 Spaces Moved 597 | 58 118 298 123 Core 7 | 7 . . . Treads 590 | 51 118 298 123 Legs . | . . . . Wheels . | . . . . Hover . | . . . . Flight . | . . . . Fastest Speed 50 | 50 160 160 160 Average Speed 158 | 146 160 160 160 Slowest Speed 160 | 160 160 160 160 Overloaded Moves . | . . . . Propulsion Burnouts . | . . . . Robots Hopped . | . . . . Cave-ins Triggered . | . . . . Exploration Rate (%) 26 | 3 28 62 12 Regions Visited 3 Branch Regions 1 Pre-discovered Areas 2 | . . 2 . Known Exits Taken . | . . . . Unknown Exits Taken 3 | 1 1 1 . Scrap Searched 1 | . . 1 . Spaces Dug . | . . . . Terrain Destroyed 2 | . . . 2 Melee . | . . . . Projectile . | . . . . AOE 2 | . . . 2 Terrain Rammed . | . . . . Walls Destroyed . | . . . . Machines Disabled . | . . . . Actions | -11 -10 -10 -9 --------- Run | Yrd Mat Min Mat Total 711 | 77 143 336 155 Wait 24 | . 15 9 . Move 595 | 58 117 297 123 Hop . | . . . . Pick Up 22 | 10 4 3 5 Fast Attach 1 | 1 . . . Attach 11 | 4 4 1 2 Detach . | . . . . Swap 8 | 1 . 4 3 Drop 6 | 1 . 2 3 Fire 42 | 2 3 19 18 Melee . | . . . . Ram 1 | . . . 1 Kick . | . . . . Crush 1 | . . 1 . Escape Stasis . | . . . . Rewire . | . . . . Trap . | . . . . Miscellaneous . | . . . . Route ------- -11/Scrapyard -10/Materials -10/Mines -9/Materials (discovered 1 exit: [*Sto]) History --------- Turn | Location | Event 7 | -11/Scrapyard | Discovered new exit (range 13) 108 | -11/Scrapyard | Entered Materials 275 | -10/Materials | Discovered new exit (range 15) 300 | -10/Materials | Build established: Mutant 328 | -10/Materials | Entered Mines 517 | -10/Mines | Learned location of Storage (-9) 708 | -10/Mines | Learned location of Mines (-9) 789 | -10/Mines | Core integrity fell below 50% 858 | -10/Mines | Discovered new exit (range 10) 879 | -10/Mines | Entered Materials 879 | -9/Materials | Evolved 2 slots: Propulsion x1, Weapon x1 924 | -9/Materials | Discovered new exit (range 9) 1143 | -9/Materials | Self-destructed Last Messages --------------- Acquired Autogun. U-05 Engineer lays Concrete. Acquired 10 matter. Acquired 16 matter. U-05 Engineer lays Concrete. Acquired 41 matter. U-05 Engineer lays Concrete. Acquired 13 matter. U-05 Engineer lays Concrete. U-05 Engineer builds a Door. M-13 Machinist repairs Welding Torch. U-05 Engineer builds a Wall. Acquired 53 matter. U-05 Engineer builds a Wall. U-05 Engineer lays Concrete. K-01 Serf collects debris. Lgt. Treads severed. Lgt. Assault Rifle severed. Slammed into L-31 Rogue. Lgt. Nuclear Core destroyed. Map ----- +----------------------------------------------------+ | ?????????????????????????????????# #???? | | ?????????????????????????????????# #???? | | ?????????????????????????????????# #???? | | ?????????????????????????????????# #???? | | ?????????????????????????????????# #???? | | ?????????????????????????????????# #???? | | ?????????????????????##+######+### #???? | | ???????????????????? ###?? | | ???????????????????? ""#?? | | ???????????????????? ""#?? | | ?????????????????????###### """" T"#?? | | ??????????????????????????# """" ""#?? | | ??????????????????????????# """" ""#?? | | ??????????????????????????+ ###?? | | ??????????????????????????# #???? | | ??????????????????????????# #???? | | ??????????????????????????# #???? | | ??????????????????????????# ###### #???? | | ??????????????????????????# #????#"#???? | | ??????????????????????????# #????#%#???? | | ??????????????????????????#? ######+##### | | ??????????????????????????# ## * ! # | | ??????????????????????????# ## """[ [# | | ?????????????????????????## ## """* !=# | | ??????????????????########l # """ [ # | | ??????????????????# @g #[=*[ [ # | | ??????????????????# [= < + = # | | ??????????????????# m #== [[ # | | ??????????????????# #### # [ !# | | ????????########### #??## ########### | | ????????# # #???# #???????? | | ????????# # #???#! !#???????? | | ????????# # #???##!!!!##???????? | | ????????# + #????######????????? | | ????????# # #??????????????????? | | ????????# # #??????????????????? | | ????????# # #??????????????????? | | ????????# # #??????????????????? | | ????????##+##+##+## #??????????????????? | | ?????????# #??????????????????? | | ?????????# #??????????????????? | | ????# #??????????????????? | | ????# ##############+#####???????????????? | | ????????????????# [ #???????????????? | | ????????????????# """ #???????????????? | | ????????????????# """ #???????????????? | | ????????????????# """ #???????????????? | | ????????????????# #???????????????? | | ????????????????# """ #???????????????? | | ????????????????#] """ #???????????????? | +----------------------------------------------------+ Best States ------------- Heat Dissipation 28 Energy Generation 14 Energy Capacity 160 Matter Stores 251 Matter Capacity 300 Sight Range 16 Robot Scan Range 14 Terrain Scan Density 10 Evasion (%) 40 Recoil Reduction 2 Item Schematics ----------------- None Robot Schematics ------------------ None Fabricated ------------ Nothing Alien Tech Used ----------------- None Achievements -------------- None Challenges ------------ None Game ------ Seed ZioniteMultitargetingLegs Manual? 0 Play Time 00:13:20 Cumulative 5.2 hours Start 2025.03.17 @ 22:22:18 End 2025.03.17 @ 22:33:07 Sessions 1 Manual Loads 0 Difficulty Rogue Special Mode None Game No. 11 Rogue 11 Adventurer 0 Explorer 0 Win Type - Total 0 Types 0/0/0/0/0/0/0/0/0 Lore% 3 Gallery% 8 Achievement% 9 Wizard Run 0 Options --------- Layout 1 ASCII 0 Keyboard 0 Movement Numpad Keybinds 0 Fullscreen 1 Font 24/Smallcaps Map View 50x35 Zoom Use 0% Tactical HUD 0 Map Filters NONE Filters NONE Steam 1 RUN: 224a4e75-e57c-4545-89a4-60d8c70d7993